bitfinex-derivatives/quotes_ETHF0:USTF0_20250426
["timestamp","ask_amount","ask_price","bid_price","bid_amount"]
[1745647648780,1.7309,1795.9,1795.8,9.9792]
[1745647649380,1.7309,1795.9,1795.8,4.6712]
[1745647652171,1.7309,1795.9,1795.8,9.9792]
[1745647653075,1.7309,1795.9,1795.8,4.6712]
[1745647658288,1.7309,1795.9,1795.8,9.9792]
[1745647659283,1.7309,1795.9,1795.8,4.6712]
[1745647662189,1.7309,1795.9,1795.8,9.9792]
[1745647665292,1.7309,1795.9,1795.8,4.6712]
[1745647665890,5.8407,1796.0,1795.9,1.11317]
[1745647666083,5.8407,1796.0,1795.9,3.63447]
[1745647666287,4.0785,1796.1,1796.0,1.11311]
[1745647666483,1.7528,1796.3,1796.2,1.11299]
[1745647666793,4.32045,1796.8,1796.5,1.11276]
[1745647667095,8.3812,1796.7,1796.5,3.558]
[1745647667396,8.3812,1796.7,1796.5,4.67076]
[1745647667590,9.2438,1796.7,1796.5,4.67076]
[1745647668597,1.7385,1796.6,1796.5,4.67076]
[1745647670194,1.7385,1796.6,1796.5,9.97876]
[1745647671193,1.7385,1796.6,1796.5,4.67076]
[1745647672296,9.8505,1796.7,1796.6,1.11274]
[1745647672495,9.8505,1796.7,1796.6,3.61074]
[1745647673198,9.0485,1796.7,1796.6,3.61074]
[1745647673397,9.0485,1796.7,1796.6,4.47314]
[1745647673592,3.2078,1796.7,1796.6,4.47314]
[1745647679501,3.2078,1796.7,1796.6,2.498]
[1745647679702,5.7161,1796.7,1796.6,3.61074]
[1745647681802,2.5083,1796.7,1796.6,3.61074]
[1745647682301,2.5083,1796.7,1796.5,4.67079]
[1745647682602,1.7018,1796.6,1796.5,7.16809]
[1745647683201,1.7018,1796.6,1796.5,12.47609]
[1745647686198,2.81454,1796.6,1796.5,5.308]
[1745647686504,2.81454,1796.6,1796.5,8.864]
[1745647687208,2.81454,1796.6,1796.5,3.556]
[1745647689495,8.65524,1796.6,1796.5,3.556]
[1745647690006,7.5425,1796.6,1796.5,4.6688]
[1745647693807,10.7503,1796.6,1796.5,4.6688]
[1745647694208,10.7503,1796.6,1796.5,3.556]
[1745647694911,7.5425,1796.6,1796.5,3.556]
[1745647695108,10.7503,1796.6,1796.5,3.556]
[1745647696612,15.7503,1796.6,1796.4,3.556]
[1745647696814,3.5774,1796.5,1796.4,3.556]
[1745647699714,6.7852,1796.5,1796.4,3.556]
[1745647701112,12.6259,1796.5,1796.4,3.556]
[1745647705229,12.6259,1796.5,1796.4,4.66887]
[1745647705518,11.5131,1796.5,1796.4,4.66887]
[1745647705718,12.6259,1796.5,1796.4,4.66887]
[1745647706020,10.6436,1796.5,1796.4,4.66887]
[1745647706822,7.4358,1796.5,1796.4,4.66887]
[1745647707012,1.5951,1796.5,1796.4,6.32417]
[1745647708322,1.5951,1796.5,1796.4,11.63217]
[1745647709219,1.5951,1796.5,1796.4,6.32417]
[1745647717129,2.7079,1796.5,1796.4,5.2113]
[1745647717331,1.5951,1796.5,1796.4,5.2113]
[1745647717732,1.5951,1796.5,1796.4,6.32417]
[1745647718928,1.5951,1796.5,1796.4,5.2113]
[1745647719126,2.7079,1796.5,1796.4,3.556]
[1745647719333,5.9157,1796.5,1796.4,3.556]
[1745647721531,4.8029,1796.5,1796.4,4.66887]
[1745647721733,5.9157,1796.5,1796.4,3.556]
[1745647722127,5.9157,1796.5,1796.4,4.66887]
[1745647724546,11.7564,1796.5,1796.4,4.66887]
[1745647726146,8.5486,1796.5,1796.4,4.66887]
[1745647726347,8.5486,1796.5,1796.4,5.48457]
[1745647727152,5.8407,1796.5,1796.4,5.48457]
[1745647730536,7.5951,1796.6,1796.4,5.48457]
[1745647730745,7.5951,1796.6,1796.5,1.5896]
[1745647732952,8.70784,1796.6,1796.5,1.5896]
[1745647737253,8.70784,1796.6,1796.4,5.48457]
[1745647737452,1.6192,1796.5,1796.4,5.48457]
[1745647750969,1.6192,1796.5,1796.4,3.556]
[1745647751160,1.11289,1796.4,1796.2,1.11296]
[1745647751358,2.5401,1796.3,1796.2,1.11296]
[1745647756271,12.70157,1796.3,1796.1,3.554]
[1745647756465,2.5456,1796.2,1796.1,3.554]
[1745647756670,2.5456,1796.2,1796.1,4.66705]
[1745647758470,1.7102,1796.2,1796.1,4.66705]
[1745647758667,6.7021,1796.3,1796.1,5.53125]
[1745647758875,6.7021,1796.3,1796.2,2.79349]
[1745647759371,8.3211,1796.3,1796.2,2.79349]
[1745647759974,2.4804,1796.3,1796.2,2.79349]
[1745647761665,2.4804,1796.3,1796.1,5.53121]
[1745647761869,1.5794,1796.2,1796.1,5.53121]
[1745647762174,1.5794,1796.2,1796.1,3.554]
[1745647762374,3.56049,1796.2,1796.1,3.554]
[1745647762781,1.11311,1796.0,1795.9,2.4182]
[1745647762980,1.11311,1796.0,1795.9,3.555]
[1745647763477,3.51881,1796.0,1795.9,3.555]
[1745647764087,9.35951,1796.0,1795.9,3.555]
[1745647764382,14.66751,1796.0,1795.9,3.555]
[1745647766775,1.11319,1795.9,1795.7,4.66727]
[1745647766980,3.51169,1795.9,1795.7,4.66727]
[1745647767383,1.7009,1795.8,1795.7,4.66727]
[1745647770182,8.65484,1795.8,1795.7,3.554]
[1745647770676,1.11336,1795.6,1795.5,3.2078]
[1745647770870,5.8407,1795.6,1795.3,7.87533]
[1745647771075,2.3974,1795.5,1795.4,1.11349]
[1745647771276,11.4459,1795.5,1795.3,3.554]
[1745647771478,3.58949,1795.4,1795.3,3.554]
[1745647774076,2.476,1795.4,1795.3,3.554]
[1745647774478,8.3167,1795.4,1795.3,3.554]
[1745647776378,8.3167,1795.4,1795.2,2.8301]
[1745647776589,8.54795,1795.3,1795.2,1.7165]
[1745647776889,11.75575,1795.3,1795.2,1.7165]
[1745647780687,10.16205,1795.3,1795.1,1.11367]
[1745647782285,9.0485,1795.3,1795.2,1.11361]
[1745647782486,10.16205,1795.3,1795.1,3.58552]
[1745647782685,0.8464,1795.2,1795.1,3.58552]
[1745647783784,2.4707,1795.2,1795.1,3.58552]
[1745647784076,3.2735,1795.2,1795.1,3.58552]
[1745647786186,9.1142,1795.2,1795.1,2.4719]
[1745647786381,10.22781,1795.2,1795.1,2.4719]
[1745647786581,10.22781,1795.2,1795.0,4.66868]
[1745647786781,1.7359,1795.1,1795.0,4.66868]
[1745647786983,1.7359,1795.1,1795.0,6.39418]
[1745647787184,1.7359,1795.1,1795.0,11.70218]
[1745647788196,1.7359,1795.1,1795.0,6.39418]
[1745647789091,1.7359,1795.1,1795.0,11.70218]
[1745647789293,1.7359,1795.1,1795.0,11.70223]
[1745647789492,1.7359,1795.1,1795.0,10.5885]
[1745647789691,2.84957,1795.1,1795.0,10.5885]
[1745647790282,1.7359,1795.1,1795.0,10.5885]
[1745647790487,2.84957,1795.1,1795.0,10.5885]
[1745647793685,1.7359,1795.1,1795.0,10.5885]
[1745647793889,7.4899,1795.2,1795.0,10.5885]
[1745647794103,8.60353,1795.2,1795.1,1.7056]
[1745647794686,10.21333,1795.2,1795.1,1.7056]
[1745647798499,1.11367,1795.1,1795.0,3.555]
[1745647798691,2.74737,1795.1,1795.0,6.40793]
[1745647798891,1.6337,1795.1,1795.0,6.40793]
[1745647799088,2.74737,1795.1,1795.0,11.71593]
[1745647799289,1.6337,1795.1,1795.0,11.71593]
[1745647799695,2.74737,1795.1,1795.0,10.6022]
[1745647800193,1.6337,1795.1,1795.0,11.71593]
[1745647800801,2.74737,1795.1,1795.0,10.6022]
[1745647802096,2.74737,1795.1,1795.0,5.2942]
[1745647802803,1.1138,1794.9,1794.8,3.2078]
[1745647803005,1.1138,1794.9,1794.8,3.555]
[1745647803504,3.6673,1794.9,1794.8,3.555]
[1745647804101,2.5535,1794.9,1794.8,4.66886]
[1745647804701,3.6673,1794.9,1794.8,5.1905]
[1745647807706,2.5535,1794.9,1794.8,5.1905]
[1745647808008,5.8407,1795.0,1794.8,6.30436]
[1745647808210,5.8407,1795.0,1794.9,2.7049]
[1745647808411,5.8407,1795.0,1794.9,3.5726]
[1745647809116,5.8407,1795.0,1794.9,8.8806]
[1745647812415,3.2078,1795.5,1794.9,12.7668]
[1745647812713,4.0257,1795.5,1795.4,1.11349]
[1745647813106,3.2078,1795.5,1795.4,1.11349]
[1745647813312,3.2078,1795.5,1795.4,2.79329]
[1745647815112,3.2078,1795.5,1795.4,1.6798]
[1745647815320,3.2078,1795.5,1795.4,2.79329]
[1745647816710,4.897,1795.5,1795.4,2.79329]
[1745647818221,4.897,1795.5,1795.4,1.6798]
[1745647819022,4.897,1795.5,1795.4,2.79329]
[1745647820222,6.01042,1795.5,1795.4,1.6798]
[1745647821022,4.897,1795.5,1795.4,1.6798]
[1745647822522,4.897,1795.5,1795.4,2.79329]
[1745647822823,1.6892,1795.5,1795.4,2.79329]
[1745647825420,1.6892,1795.5,1795.4,1.6798]
[1745647826127,2.80262,1795.5,1795.4,1.6798]
[1745647827227,1.6892,1795.5,1795.4,1.6798]
[1745647827621,1.6892,1795.5,1795.4,2.79329]
[1745647828930,2.80262,1795.5,1795.4,1.6798]
[1745647832528,2.80262,1795.5,1795.3,4.6695]
[1745647832725,2.4185,1795.4,1795.3,4.6695]
[1745647832926,3.2935,1795.4,1795.3,4.6695]
[1745647833838,2.4185,1795.4,1795.3,6.2529]
[1745647834231,0.8254,1795.4,1795.3,9.4607]
[1745647834432,2.4681,1795.6,1795.4,1.11343]
[1745647834632,3.2935,1795.6,1795.5,1.11342]
[1745647834831,3.2935,1795.6,1795.5,0.8557]
[1745647835531,3.2935,1795.6,1795.5,1.96912]
[1745647836830,2.4185,1795.6,1795.5,1.96912]
[1745647837035,3.2078,1796.0,1795.8,1.11324]
[1745647837533,1.708,1795.9,1795.8,1.11324]
[1745647837736,1.708,1795.9,1795.8,3.50554]
[1745647838035,1.686,1796.1,1796.0,1.11311]
[1745647838232,3.2878,1796.1,1795.9,2.71294]
[1745647838429,3.2878,1796.1,1796.0,3.554]
[1745647838631,1.686,1796.1,1796.0,4.66711]
[1745647838831,1.686,1796.1,1796.0,5.1538]
[1745647841042,2.79905,1796.1,1796.0,3.554]
[1745647841641,1.686,1796.1,1796.0,3.554]
[1745647846743,1.686,1796.1,1796.0,4.66711]
[1745647848045,2.79905,1796.1,1796.0,3.554]
[1745647849044,1.686,1796.1,1796.0,4.66711]
[1745647850541,2.79905,1796.1,1796.0,3.554]
[1745647853748,1.686,1796.1,1796.0,4.66711]
[1745647854039,1.686,1796.1,1796.0,6.36901]
[1745647854244,0.8126,1796.1,1796.0,6.36901]
[1745647860957,0.8126,1796.1,1796.0,4.66711]
[1745647861349,2.541,1796.1,1796.0,4.66711]
[1745647861756,2.541,1796.1,1796.0,6.34751]
[1745647869153,5.87,1796.4,1796.0,10.2344]
[1745647869359,4.32056,1796.6,1796.0,10.2344]
[1745647869360,2.4927,1796.5,1796.4,1.11285]
[1745647869548,2.4927,1796.5,1796.4,4.66485]
[1745647869756,3.2078,1796.6,1796.5,1.1128]
[1745647870060,3.2078,1796.6,1796.5,3.6319]
[1745647870261,4.8391,1796.6,1796.5,3.6319]
[1745647872057,5.6584,1796.6,1796.5,3.6319]
[1745647872560,5.6584,1796.6,1796.5,2.5191]
[1745647873962,5.6584,1796.6,1796.5,3.6319]
[1745647874354,5.6584,1796.6,1796.5,2.5191]
[1745647874861,5.6584,1796.6,1796.5,0.8337]
[1745647876058,5.6584,1796.6,1796.5,1.9465]
[1745647879163,5.6584,1796.6,1796.5,0.8337]
[1745647882068,5.6584,1796.6,1796.5,1.9465]
[1745647882366,5.6584,1796.6,1796.5,0.8337]
[1745647882767,2.4506,1796.6,1796.5,0.8337]
[1745647884369,2.4506,1796.6,1796.5,1.9465]
[1745647884765,2.4506,1796.6,1796.5,3.6108]
[1745647887162,1.6313,1796.6,1796.5,8.9188]
[1745647887359,6.7314,1796.7,1796.6,1.11274]
[1745647887560,6.7314,1796.7,1796.6,2.83194]
[1745647888164,1.6972,1796.8,1796.7,1.11268]
[1745647888365,1.6972,1796.8,1796.7,6.38288]
[1745647891667,1.6856,1796.9,1796.8,1.11262]
[1745647891868,1.6856,1796.9,1796.8,3.68802]
[1745647892369,3.3813,1796.9,1796.8,3.68802]
[1745647892763,3.3813,1796.9,1796.8,2.5754]
[1745647893366,3.3813,1796.9,1796.8,3.68802]
[1745647893768,1.11262,1796.8,1796.7,3.551]
[1745647893966,2.72922,1796.8,1796.7,3.551]
[1745647894674,1.6166,1796.8,1796.7,4.66368]
[1745647895869,1.6166,1796.8,1796.7,6.38178]
[1745647896067,1.6856,1796.9,1796.8,1.11262]
[1745647896068,0.8721,1796.9,1796.8,1.11262]
[1745647896272,0.8721,1796.9,1796.8,2.83072]
[1745647896673,2.4529,1796.9,1796.8,2.83072]
[1745647897767,2.4529,1796.9,1796.8,1.11262]
[1745647897975,2.4529,1796.9,1796.7,4.66364]
[1745647898161,1.5808,1796.8,1796.7,4.66364]
[1745647899874,1.5808,1796.8,1796.7,6.29274]
[1745647900375,1.5808,1796.8,1796.7,3.551]
[1745647900573,1.5808,1796.8,1796.7,4.66368]
[1745647904373,1.5808,1796.8,1796.7,6.30158]
[1745647904577,9.0778,1797.5,1796.7,16.17837]
[1745647904883,2.4863,1797.2,1797.1,1.11238]
[1745647905074,7.7943,1797.2,1797.1,4.66238]
[1745647905481,7.7943,1797.2,1797.1,6.26008]
[1745647912185,2.4863,1797.2,1797.1,6.26008]
[1745647915282,2.4863,1797.2,1797.1,4.66238]
[1745647916283,7.7943,1797.2,1797.1,4.66238]
[1745647916489,7.7943,1797.2,1797.1,6.27858]
[1745647918487,7.7943,1797.2,1797.1,5.1662]
[1745647918689,8.90667,1797.2,1797.1,3.55]
[1745647919186,7.7943,1797.2,1797.1,3.55]
[1745647919989,7.7943,1797.2,1797.1,4.66243]
[1745647921385,8.90667,1797.2,1797.1,3.55]
[1745647922594,12.7943,1797.2,1796.7,3.2078]
[1745647922792,1.11254,1797.0,1796.8,3.549]
[1745647923097,2.4983,1796.9,1796.8,3.549]
[1745647924494,6.81866,1796.9,1796.8,3.549]
[1745647925193,12.12666,1796.9,1796.8,3.549]
[1745647925792,11.0141,1796.9,1796.8,4.66162]
[1745647926593,7.8063,1796.9,1796.8,4.66162]
[1745647927095,2.4983,1796.9,1796.8,4.66162]
[1745647928998,5.87,1797.2,1796.8,6.7568]
[1745647929197,5.87,1797.2,1797.0,1.11246]
[1745647929396,7.5696,1797.2,1797.0,1.11246]
[1745647929598,7.5696,1797.2,1797.0,2.71956]
[1745647929897,1.6996,1797.1,1797.0,2.71956]
[1745647931301,1.6996,1797.1,1797.0,1.6071]
[1745647931597,1.6996,1797.1,1797.0,2.71959]
[1745647932298,7.0076,1797.1,1797.0,2.71959]
[1745647932894,5.308,1797.1,1797.0,2.71959]
[1745647933085,5.308,1797.1,1797.0,3.52599]
[1745647933292,0.798,1797.3,1797.2,1.11237]
[1745647933591,0.798,1797.3,1797.2,4.66137]
[1745647934000,0.798,1797.3,1797.2,5.50877]
[1745647935296,6.106,1797.3,1797.2,5.50877]
[1745647939105,1.7192,1797.4,1797.3,1.11231]
[1745647939401,1.7192,1797.4,1797.3,2.70991]
[1745647939705,4.9205,1797.5,1797.4,1.11225]
[1745647939908,4.9205,1797.5,1797.4,2.70985]
[1745647940104,11.9143,1797.5,1797.4,1.5976]
[1745647940407,11.9143,1797.5,1797.4,2.70985]
[1745647941502,5.308,1797.5,1797.4,2.70985]
[1745647942202,3.2078,1797.7,1797.6,1.11212]
[1745647942403,3.2078,1797.7,1797.6,4.66112]
[1745647942902,3.2078,1797.7,1797.6,6.24352]
[1745647943304,8.5158,1797.7,1797.6,6.24352]
[1745647943608,5.308,1797.7,1797.6,6.24352]
[1745647955216,7.0217,1797.8,1797.7,1.11206]
[1745647955814,11.34151,1797.8,1797.6,5.1314]
[1745647956011,1.6345,1797.7,1797.6,3.549]
[1745647956616,1.6345,1797.7,1797.6,4.66112]
[1745647957210,6.9425,1797.7,1797.6,4.66112]
[1745647959421,8.05456,1797.7,1797.6,3.549]
[1745647960123,6.9425,1797.7,1797.6,3.549]
[1745647960422,6.9425,1797.7,1797.6,4.66112]
[1745647961015,6.9425,1797.7,1797.6,5.49832]
[1745647961922,5.308,1797.7,1797.6,5.49832]
[1745647962124,3.2761,1797.9,1797.8,1.112]
[1745647963119,8.5841,1797.9,1797.8,1.112]
[1745647966029,8.5841,1797.9,1797.7,2.74782]
[1745647966225,1.7456,1797.8,1797.7,2.74782]
[1745647967015,1.7456,1797.8,1797.7,1.11202]
[1745647967225,7.0536,1797.8,1797.7,1.11202]
[1745647973930,5.308,1797.8,1797.7,2.84612]
[1745647974127,0.8241,1797.9,1797.8,1.112]
[1745647974327,0.8241,1797.9,1797.8,2.8461]
[1745647975237,3.2078,1798.0,1797.9,1.11194]
[1745647975436,3.2934,1798.1,1797.9,6.0429]
[1745647975837,3.2934,1798.1,1798.0,1.626]
[1745647976026,3.2934,1798.1,1798.0,2.73787]
[1745647976234,8.6014,1798.1,1798.0,2.73787]
[1745647980137,8.6014,1798.1,1798.0,1.11187]
[1745647980343,9.71321,1798.1,1797.9,4.6589]
[1745647980536,1.6573,1798.0,1797.9,4.6589]
[1745647980739,1.6573,1798.0,1797.9,3.547]
[1745647981038,1.6573,1798.0,1797.9,4.65894]
[1745647981231,6.9653,1798.0,1797.9,4.65894]
[1745647982036,5.308,1798.0,1797.9,4.65894]
[1745647982841,6.9177,1798.0,1797.9,4.65894]
[1745647983438,5.308,1798.0,1797.9,4.65894]
[1745647984140,0.8182,1798.1,1798.0,1.11187]
[1745647984448,0.8182,1798.1,1798.0,3.70537]
[1745647985149,6.1262,1798.1,1798.0,3.70537]
[1745647986947,5.308,1798.1,1798.0,3.70537]
[1745647987143,5.308,1798.1,1798.0,4.57967]
[1745647987350,1.6097,1798.2,1798.1,1.11181]
[1745647987545,1.6097,1798.2,1798.1,2.76771]
[1745647988157,6.9177,1798.2,1798.1,2.76771]
[1745647989653,5.308,1798.2,1798.1,2.76771]
[1745647990245,2.5194,1798.3,1798.2,1.11175]
[1745647990446,2.5194,1798.3,1798.2,6.34245]
[1745647990639,5.18141,1798.6,1798.4,1.11161]
[1745647990855,2.5106,1798.5,1798.3,3.59925]
[1745647991051,1.7029,1798.4,1798.3,1.91455]
[1745647991858,1.7029,1798.4,1798.2,4.65773]
[1745647992051,0.7932,1798.3,1798.2,4.65773]
[1745647992650,2.4961,1798.3,1798.2,4.65773]
[1745647993148,7.8041,1798.3,1798.2,4.65773]
[1745647994045,7.8041,1798.3,1798.2,6.37683]
[1745648000565,7.8041,1798.3,1798.2,3.546]
[1745648001256,8.91579,1798.3,1798.2,3.546]
[1745648002768,1.11184,1798.1,1797.9,5.6728]
[1745648003070,3.63139,1798.2,1798.0,4.65787]
[1745648003367,1.91939,1798.2,1798.0,3.546]
[1745648003562,1.11181,1798.1,1798.0,3.546]
[1745648004169,6.41981,1798.1,1798.0,3.546]
[1745648004369,5.308,1798.1,1798.0,3.546]
[1745648005168,5.308,1798.1,1797.7,1.94392]
[1745648005169,1.11191,1798.0,1797.7,1.94392]
[1745648005370,0.8076,1797.9,1797.8,4.65799]
[1745648006367,6.1156,1797.9,1797.8,4.65799]
[1745648007463,5.308,1797.9,1797.8,6.40039]
[1745648007663,5.308,1797.9,1797.8,7.20349]
[1745648008264,0.8458,1798.0,1797.8,7.20349]
[1745648008868,0.8458,1798.0,1797.9,1.11194]
[1745648009261,6.1538,1798.0,1797.9,1.11194]
[1745648011070,6.1538,1798.0,1797.8,7.20345]
[1745648011472,7.2657,1798.0,1797.8,5.2884]
[1745648011666,7.2657,1798.0,1797.8,3.546]
[1745648012070,6.1538,1798.0,1797.8,4.65799]
[1745648012467,6.1538,1798.0,1797.9,1.11194]
[1745648012673,6.1538,1798.0,1797.8,6.37255]
[1745648013269,6.1538,1798.0,1797.9,1.11194]
[1745648013670,6.1538,1798.0,1797.9,2.82654]
[1745648013870,6.1538,1798.0,1797.9,1.7146]
[1745648014274,6.1538,1798.0,1797.8,4.65796]
[1745648014870,6.1538,1798.0,1797.8,6.38146]
[1745648016270,1.7443,1797.9,1797.8,6.38146]
[1745648018381,1.7443,1797.9,1797.8,3.546]
[1745648019172,7.0523,1797.9,1797.8,3.546]
[1745648019371,7.0523,1797.9,1797.8,4.658]
[1745648019572,7.0523,1797.9,1797.8,3.546]
[1745648020281,7.0523,1797.9,1797.8,4.658]
[1745648020782,7.0523,1797.9,1797.8,3.546]
[1745648021176,7.0523,1797.9,1797.8,4.658]
[1745648021572,7.0523,1797.9,1797.8,6.3504]
[1745648022183,1.7443,1797.9,1797.8,6.3504]
[1745648023083,7.0523,1797.9,1797.8,6.3504]
[1745648024284,7.0523,1797.9,1797.8,5.2384]
[1745648026580,8.16424,1797.9,1797.8,3.546]
[1745648029287,7.0523,1797.9,1797.8,3.546]
[1745648030290,7.0523,1797.9,1797.8,4.658]
[1745648030583,7.0523,1797.9,1797.8,6.3062]
[1745648034292,7.0523,1797.9,1797.8,5.1942]
[1745648035290,7.0523,1797.9,1797.8,3.546]
[1745648037593,8.16424,1797.9,1797.8,3.546]
[1745648039296,7.0523,1797.9,1797.8,3.546]
[1745648040291,7.0523,1797.9,1797.8,4.658]
[1745648040597,7.0523,1797.9,1797.8,6.3582]
[1745648040788,5.308,1797.9,1797.8,6.3582]
[1745648040990,5.308,1797.9,1797.8,7.1485]
[1745648041190,8.3337,1798.1,1797.9,1.11191]
[1745648041390,10.30221,1798.1,1797.9,3.63771]
[1745648041590,1.605,1798.0,1797.9,3.63771]
[1745648041895,2.71687,1798.0,1797.8,3.546]
[1745648042091,10.1208,1798.0,1797.8,4.65799]
[1745648042297,1.6535,1797.9,1797.8,4.65799]
[1745648042498,2.4568,1797.9,1797.8,4.65799]
[1745648043099,7.7648,1797.9,1797.8,4.65799]
[1745648044298,7.7648,1797.9,1797.8,4.658]
[1745648045897,7.7648,1797.9,1797.8,5.5038]
[1745648047486,7.7648,1797.9,1797.8,4.3918]
[1745648048393,7.7648,1797.9,1797.8,3.546]
[1745648050205,7.7648,1797.9,1797.8,4.658]
[1745648050703,7.7648,1797.9,1797.8,6.2669]
[1745648052096,7.7648,1797.9,1797.8,5.1549]
[1745648052401,7.7648,1797.9,1797.8,6.2669]
[1745648058318,5.308,1797.9,1797.8,6.2669]
[1745648058699,5.308,1797.9,1797.8,7.142]
[1745648059104,9.2299,1798.1,1797.9,1.11191]
[1745648059305,9.2299,1798.1,1797.9,3.56471]
[1745648060213,11.178,1798.1,1798.0,1.11187]
[1745648060405,11.178,1798.1,1798.0,2.82247]
[1745648061212,5.87,1798.1,1798.0,2.82247]
[1745648061914,3.2078,1798.2,1798.1,1.11181]
[1745648062113,8.5158,1798.2,1798.1,3.64881]
[1745648063213,8.5158,1798.2,1798.1,7.19381]
[1745648064205,3.2078,1798.2,1798.1,7.19381]
[1745648068014,1.7025,1798.3,1798.2,1.11175]
[1745648068209,1.7025,1798.3,1798.2,2.78835]
[1745648069214,7.0105,1798.3,1798.2,2.78835]
[1745648076712,7.0105,1798.3,1798.1,5.48317]
[1745648076906,1.5864,1798.2,1798.1,5.48317]
[1745648077817,2.3854,1798.2,1798.1,5.48317]
[1745648078319,7.6934,1798.2,1798.1,5.48317]
[1745648079824,6.8944,1798.2,1798.1,5.48317]
[1745648082912,6.8944,1798.2,1798.1,3.545]
[1745648083516,8.00615,1798.2,1798.1,3.545]
[1745648085826,11.21395,1798.2,1798.1,3.545]
[1745648087719,8.00615,1798.2,1798.1,3.545]
[1745648091023,11.21395,1798.2,1798.1,3.545]
[1745648091223,1.11197,1797.9,1797.7,0.8372]
[1745648091438,1.11189,1798.0,1797.8,4.656]
[1745648091934,0.8736,1797.9,1797.8,4.656]
[1745648092232,6.1816,1797.9,1797.8,4.656]
[1745648093031,6.1816,1797.9,1797.8,6.2927]
[1745648094834,5.308,1797.9,1797.8,6.2927]
[1745648105250,1.6662,1798.1,1797.8,6.2927]
[1745648105551,1.6662,1798.1,1797.9,3.60233]
[1745648106150,6.9742,1798.1,1797.9,3.60233]
[1745648106351,8.5992,1798.1,1797.9,3.60233]
[1745648107057,9.71102,1798.1,1797.8,4.65595]
[1745648107353,1.625,1798.0,1797.8,4.65595]
[1745648107557,1.625,1798.0,1797.8,6.33805]
[1745648108054,6.933,1798.0,1797.8,6.33805]
[1745648108255,1.625,1797.9,1797.8,6.33805]
[1745648109354,6.933,1797.9,1797.8,6.33805]
[1745648110251,6.933,1797.9,1797.8,3.544]
[1745648111159,7.7521,1797.9,1797.8,3.544]
[1745648111660,7.7521,1797.9,1797.8,4.656]
[1745648111857,6.933,1797.9,1797.8,6.3941]
[1745648112252,1.625,1797.9,1797.8,6.3941]
[1745648113259,6.933,1797.9,1797.8,6.3941]
[1745648113458,5.308,1797.9,1797.8,6.3941]
[1745648114962,6.41994,1797.9,1797.8,3.544]
[1745648115160,7.28024,1797.9,1797.8,3.544]
[1745648115560,9.02874,1797.9,1797.8,3.544]
[1745648123466,14.89874,1797.9,1797.8,3.544]
[1745648126367,1.11234,1797.3,1797.1,4.65641]
[1745648126562,1.96917,1797.2,1797.1,3.544]
[1745648126771,2.5296,1797.2,1797.1,4.65643]
[1745648127161,8.6328,1797.2,1797.1,4.65643]
[1745648128565,7.776,1797.2,1797.1,4.65643]
[1745648128867,5.308,1797.2,1797.1,5.51343]
[1745648129064,3.2992,1797.4,1797.2,1.11232]
[1745648129561,3.2992,1797.4,1797.3,2.509]
[1745648130269,8.6072,1797.4,1797.3,2.509]
[1745648132072,7.7961,1797.4,1797.3,2.509]
[1745648133476,6.1034,1797.4,1797.3,3.62131]
[1745648133874,6.1034,1797.4,1797.3,2.509]
[1745648134069,0.7954,1797.4,1797.3,2.509]
[1745648134266,0.7954,1797.4,1797.3,3.62131]
[1745648137870,0.7954,1797.4,1797.3,2.509]
[1745648138272,3.63685,1797.4,1797.3,2.509]
[1745648138472,2.5246,1797.4,1797.3,2.509]
[1745648138676,3.63685,1797.4,1797.3,2.509]
[1745648140887,2.5246,1797.4,1797.3,2.509]
[1745648142176,3.63685,1797.4,1797.3,2.509]
[1745648143575,1.11232,1797.3,1797.1,5.48151]
[1745648143778,3.67682,1797.3,1797.1,8.02271]
[1745648144580,3.67682,1797.3,1797.1,6.0852]
[1745648144775,1.7378,1797.2,1797.1,7.19763]
[1745648144983,1.7378,1797.2,1797.1,6.0852]
[1745648147081,7.0458,1797.2,1797.1,6.0852]
[1745648147680,5.308,1797.2,1797.1,6.0852]
[1745648148081,1.7154,1797.3,1797.1,7.19763]
[1745648148278,1.7154,1797.3,1797.2,1.6294]
[1745648149279,7.0234,1797.3,1797.2,1.6294]
[1745648152181,1.7154,1797.3,1797.2,1.6294]
[1745648152580,1.7154,1797.3,1797.2,2.74177]
[1745648160488,1.7154,1797.3,1797.2,1.6294]
[1745648160791,2.82771,1797.3,1797.1,5.47063]
[1745648160990,0.8328,1797.2,1797.1,5.47063]
[1745648161189,2.4898,1797.2,1797.1,5.47063]
[1745648162883,3.60217,1797.2,1797.1,3.544]
[1745648163290,8.91017,1797.2,1797.1,3.544]
[1745648163890,1.1128,1796.6,1796.3,3.545]
[1745648164094,2.8024,1796.5,1796.4,1.714]
[1745648164293,2.5139,1796.5,1796.4,1.714]
[1745648165187,2.5139,1796.5,1796.4,7.022]
[1745648166093,2.5139,1796.5,1796.4,1.714]
[1745648166292,2.5139,1796.5,1796.3,4.3641]
[1745648166293,3.6267,1796.5,1796.3,4.3641]